bitfinex-derivatives/quotes_ETHF0:USTF0_20230701
["timestamp","ask_amount","ask_price","bid_price","bid_amount"]
[1688246365272,3.75166371,1923.4,1923.3,3.92607809]
[1688246372578,3.75166371,1923.4,1923.3,4.21279444]
[1688246374281,3.75166371,1923.4,1923.3,3.92607809]
[1688246383274,3.75166371,1923.4,1923.3,9.01187809]
[1688246383879,3.75166371,1923.4,1923.3,9.29859444]
[1688246386982,3.70990665,1923.4,1923.3,9.29859444]
[1688246393900,3.75166371,1923.4,1923.3,9.29859444]
[1688246394096,3.75166371,1923.4,1923.3,9.01187809]
[1688246394502,4.68748271,1923.4,1923.3,9.01187809]
[1688246396605,4.68748271,1923.4,1923.3,9.29859444]
[1688246397904,4.68748271,1923.4,1923.3,9.01187809]
[1688246399507,4.68748271,1923.4,1923.3,9.29859444]
[1688246400198,4.64572565,1923.4,1923.3,9.29859444]
[1688246400805,3.75166371,1923.4,1923.3,9.29859444]
[1688246401000,4.68748271,1923.4,1923.3,9.29859444]
[1688246403009,4.64572565,1923.4,1923.3,6.09079444]
[1688246406017,4.50394695,1923.4,1923.3,6.40035184]
[1688246413418,4.54570401,1923.4,1923.3,6.40035184]
[1688246414521,4.50394695,1923.4,1923.3,6.40035184]
[1688246422219,4.54570401,1923.4,1923.3,6.40035184]
[1688246423424,4.50394695,1923.4,1923.3,6.40035184]
[1688246423625,3.60988501,1923.4,1923.3,6.40035184]
[1688246424315,3.60988501,1923.4,1923.3,6.11363549]
[1688246424519,3.60988501,1923.4,1923.3,6.40035184]
[1688246426430,3.56812795,1923.4,1923.3,6.40035184]
[1688246432335,3.25617795,1923.4,1923.3,6.40035184]
[1688246441135,3.25617795,1923.4,1923.3,6.09079444]
[1688246441337,3.40380383,1923.4,1923.3,6.09079444]
[1688246442044,0.15080383,1923.4,1923.3,6.09079444]
[1688246444241,0.46275383,1923.4,1923.3,6.09079444]
[1688246448448,0.15080383,1923.4,1923.3,6.09079444]
[1688246448748,0.46275383,1923.4,1923.3,6.09079444]
[1688246468564,0.45957588,1923.4,1923.3,6.09079444]
[1688246468766,0.4629226,1923.4,1923.3,6.09079444]
[1688246469662,0.50467966,1923.4,1923.3,5.80407809]
[1688246470067,0.50467966,1923.4,1923.3,6.09079444]
[1688246470767,0.4629226,1923.4,1923.3,6.09079444]
[1688246475876,0.50467966,1923.4,1923.3,6.09079444]
[1688246478976,0.4629226,1923.4,1923.3,6.09079444]
[1688246482175,3.7159226,1923.4,1923.3,6.09079444]
[1688246492584,3.75767966,1923.4,1923.3,6.09079444]
[1688246496785,3.7159226,1923.4,1923.3,6.09079444]
[1688246502088,0.4629226,1923.4,1923.3,6.09079444]
[1688246523908,0.4629226,1923.4,1923.3,9.29859444]
[1688246530821,0.4629226,1923.4,1923.3,6.09079444]
[1688246531215,0.4629226,1923.4,1923.3,9.29859444]
[1688246539732,0.4629226,1923.4,1923.3,6.09079444]
[1688246540129,0.4629226,1923.4,1923.3,9.29859444]
[1688246541826,0.4629226,1923.4,1923.3,6.09079444]
[1688246542027,0.4629226,1923.4,1923.3,9.29859444]
[1688246543427,0.4629226,1923.4,1923.3,4.21279444]
[1688246543630,0.4629226,1923.4,1923.3,3.61410809]
[1688246543631,5.15767966,1923.4,1923.3,3.61410809]
[1688246543931,5.15767966,1923.4,1923.3,3.92607809]
[1688246547727,5.15767966,1923.4,1923.3,4.21279444]
[1688246551536,5.15767966,1923.4,1923.3,3.92607809]
[1688246558938,5.15767966,1923.4,1923.3,4.21279444]
[1688246564748,5.15767966,1923.4,1923.3,8.98689444]
[1688246566544,5.15767966,1923.4,1923.3,8.70017809]
[1688246567247,5.15767966,1923.4,1923.3,8.98689444]
[1688246580059,5.15767966,1923.4,1923.3,5.77909444]
[1688246581254,5.15767966,1923.4,1923.3,5.49237809]
[1688246581653,5.15767966,1923.4,1923.3,5.77909444]
[1688246582253,5.15767966,1923.4,1923.3,5.49237809]
[1688246583056,5.15767966,1923.4,1923.3,5.77909444]
[1688246584255,5.1159226,1923.4,1923.3,5.77909444]
[1688246585458,5.15767966,1923.4,1923.3,5.77909444]
[1688246588461,5.15767966,1923.4,1923.3,5.49237809]
[1688246589259,6.09349866,1923.4,1923.3,5.49237809]
[1688246589558,6.09349866,1923.4,1923.3,5.08607]
[1688246590662,6.09349866,1923.4,1923.3,5.37278635]
[1688246593968,6.0517416,1923.4,1923.3,5.37278635]
[1688246599272,6.0517416,1923.4,1923.2,4.12938219]
[1688246599474,5.24948412,1923.3,1923.2,0.4157673]
[1688246599661,5.56145412,1923.3,1923.2,0.4157673]
[1688246599863,5.56145412,1923.3,1923.0,0.78]
[1688246599864,6.64625558,1923.3,1923.0,0.78]
[1688246600272,0.04175706,1923.2,1923.0,0.78]
[1688246600572,0.45791415,1923.1,1923.0,0.78]
[1688246600771,0.45791415,1923.1,1923.0,6.23596872]
[1688246600973,0.46097167,1923.1,1923.0,6.23596872]
[1688246602167,5.14297167,1923.1,1923.0,6.23596872]
[1688246614881,5.14297167,1923.1,1923.0,6.52268507]
[1688246615377,5.14297167,1923.1,1923.0,6.23596872]
[1688246619586,5.14297167,1923.1,1923.0,6.52268507]
[1688246622293,5.14297167,1923.1,1923.0,6.23596872]
[1688246625496,5.14297167,1923.1,1923.0,6.52268507]
[1688246632095,0.46097167,1923.1,1923.0,11.16468507]
[1688246636395,0.14897167,1923.1,1923.0,11.16468507]
[1688246638495,0.46097167,1923.1,1923.0,11.16468507]
[1688246639799,0.14897167,1923.1,1923.0,11.16468507]
[1688246640108,0.46097167,1923.1,1923.0,11.16468507]
[1688246682244,0.46097167,1923.1,1923.0,11.17868507]
[1688246683138,0.50272873,1923.1,1923.0,11.17868507]
[1688246685645,0.46097167,1923.1,1923.0,11.17868507]
[1688246688742,0.43648725,1923.1,1923.0,11.17868507]
[1688246691251,0.43648725,1923.1,1923.0,11.16645409]
[1688246693249,0.12448725,1923.1,1923.0,11.16645409]
[1688246696748,0.43648725,1923.1,1923.0,11.16645409]
[1688246700949,0.47824431,1923.1,1923.0,10.87973774]
[1688246701149,0.43648725,1923.1,1923.0,11.16645409]
[1688246703364,0.12448725,1923.1,1923.0,11.16645409]
[1688246703564,0.43647725,1923.1,1923.0,11.16645409]
[1688246736891,0.43647725,1923.1,1923.0,14.37425409]
[1688246750597,0.12448725,1923.1,1923.0,14.37425409]
[1688246751096,0.43647725,1923.1,1923.0,14.37425409]
[1688246760602,0.12448725,1923.1,1923.0,14.37425409]
[1688246761004,0.14345927,1923.1,1923.0,14.37425409]
[1688246761811,0.14345927,1923.1,1923.0,14.88006898]
[1688246766013,6.29026789,1923.5,1923.1,4.645]
[1688246766211,5.04249889,1923.5,1923.4,7.8898]
[1688246766407,5.97831789,1923.5,1923.4,8.48845635]
[1688246766814,5.97831789,1923.5,1923.4,8.99427124]
[1688246767115,5.98103849,1923.5,1923.4,14.16637124]
[1688246767915,6.29296849,1923.5,1923.4,14.16637124]
[1688246768814,6.42889338,1923.5,1923.4,14.16637124]
[1688246769516,6.11696338,1923.5,1923.4,8.99427124]
[1688246769712,6.11696338,1923.5,1923.4,14.04927124]
[1688246770214,1.08226338,1923.5,1923.4,14.04927124]
[1688246770518,0.14644438,1923.5,1923.4,14.04927124]
[1688246770920,0.14372378,1923.5,1923.4,14.04927124]
[1688246778124,0.14372378,1923.5,1923.4,14.47375975]
[1688246781529,0.45565378,1923.5,1923.4,14.47375975]
[1688246784637,0.14372378,1923.5,1923.4,14.47375975]
[1688246786942,0.45565378,1923.5,1923.4,14.47375975]
[1688246789040,0.14372378,1923.5,1923.4,14.47375975]
[1688246815057,0.45565378,1923.5,1923.4,14.47375975]
[1688246822160,0.45565378,1923.5,1923.4,9.41875975]
[1688246822465,0.45565378,1923.5,1923.4,9.1320434]
[1688246822466,0.49741084,1923.5,1923.4,9.1320434]
[1688246822967,0.49741084,1923.5,1923.4,9.41875975]
[1688246823574,0.45565378,1923.5,1923.4,9.41875975]
[1688246831178,0.49741084,1923.5,1923.4,8.62622851]
[1688246831674,0.45565378,1923.5,1923.4,8.91294486]
[1688246843580,0.45565378,1923.5,1923.4,14.10254486]
[1688246855102,0.45565378,1923.5,1923.4,8.91294486]
[1688246855305,0.60141084,1923.5,1923.4,5.10648851]
[1688246855706,0.49741084,1923.5,1923.4,5.41842851]
[1688246855910,1.43322984,1923.5,1923.4,5.41842851]
[1688246856202,1.43322984,1923.5,1923.4,5.10648851]
[1688246856608,1.43322984,1923.5,1923.4,4.682]
[1688246857405,0.49741084,1923.5,1923.4,4.682]
[1688246858304,0.49741084,1923.5,1923.4,4.99394]
[1688246858508,0.49741084,1923.5,1923.4,5.28065635]
[1688246860315,0.49741084,1923.5,1923.4,4.96871635]
[1688246861316,0.45565378,1923.5,1923.4,4.96871635]
[1688246863518,0.45565378,1923.5,1923.4,5.28066635]
[1688246870716,0.45565378,1923.5,1923.4,10.40386635]
[1688246891336,0.45565378,1923.5,1923.4,13.61166635]
[1688246892842,0.77982,1923.7,1923.5,0.50581489]
[1688246893039,0.77982,1923.7,1923.6,5.25462635]
[1688246893245,0.77982,1923.7,1923.6,13.69102635]
[1688246893450,0.77982,1923.7,1923.6,10.48322635]
[1688246894042,0.88283751,1923.7,1923.6,10.48322635]
[1688246894542,0.88283751,1923.7,1923.6,13.69102635]
[1688246895546,0.10301751,1923.7,1923.6,13.69102635]
[1688246903567,0.10301751,1923.7,1923.6,14.11241423]
[1688246905359,0.41491751,1923.7,1923.6,14.11241423]
[1688246913271,0.41491751,1923.7,1923.6,10.90461423]
[1688246957004,0.41491751,1923.7,1923.6,14.11241423]
[1688246973933,0.41491751,1923.7,1923.6,10.90461423]
[1688246974342,0.41491751,1923.7,1923.6,14.11241423]
[1688246986546,0.10301751,1923.7,1923.6,14.11241423]
[1688247003655,0.41491751,1923.7,1923.6,14.11241423]
[1688247003857,0.45667457,1923.7,1923.6,8.88381423]
[1688247004259,0.41491751,1923.7,1923.6,8.88381423]
[1688247004465,0.45667457,1923.7,1923.6,8.59709788]
[1688247004766,0.41491751,1923.7,1923.6,13.59709788]
[1688247005157,0.41491751,1923.7,1923.6,13.88381423]
[1688247005353,0.10301751,1923.7,1923.6,13.88381423]
[1688247005554,0.10301751,1923.7,1923.6,19.02541423]
[1688247005768,0.41491751,1923.7,1923.6,13.88381423]
[1688247005962,0.35365706,1923.7,1923.6,14.1221815]
[1688247006168,0.3119,1923.7,1923.6,14.1221815]
[1688247006363,0.77974,1923.8,1923.7,4.682]
[1688247006562,0.77974,1923.8,1923.7,10.14171489]
[1688247012662,0.82149706,1923.8,1923.7,10.14171489]
[1688247014573,0.82149706,1923.8,1923.7,10.31948355]
[1688247014871,0.77974,1923.8,1923.7,10.31948355]
[1688247016261,0.82149706,1923.8,1923.7,10.00758355]
[1688247016568,0.82149706,1923.8,1923.7,9.50176866]
[1688247016968,0.82149706,1923.8,1923.7,9.81366866]
[1688247025178,0.77974,1923.8,1923.7,9.81366866]
[1688247027065,0.77974,1923.8,1923.7,14.88196866]
[1688247034570,0.82149706,1923.8,1923.7,14.88196866]
[1688247035177,0.77974,1923.8,1923.7,14.88196866]
[1688247038779,0.82149706,1923.8,1923.7,14.88196866]
[1688247040985,0.92532685,1923.8,1923.7,14.7042]
[1688247042886,0.92532685,1923.8,1923.7,17.912]
[1688247043987,0.88356979,1923.8,1923.7,17.912]
[1688247044892,0.92532685,1923.8,1923.7,17.912]
[1688247047892,0.88356979,1923.8,1923.7,17.912]
[1688247048293,0.92532685,1923.8,1923.7,17.912]
[1688247054988,0.92532685,1923.8,1923.7,14.7042]
[1688247055186,0.92532685,1923.8,1923.7,17.912]
[1688247060792,0.88356979,1923.8,1923.7,17.912]
[1688247061894,0.92532685,1923.8,1923.7,17.912]
[1688247064597,0.92532685,1923.8,1923.7,17.6001]
[1688247065696,0.88356979,1923.8,1923.7,17.6001]
[1688247070302,0.92532685,1923.8,1923.7,17.6001]
[1688247075001,0.88356979,1923.8,1923.7,17.6001]
[1688247079000,0.88356979,1923.8,1923.7,17.912]
[1688247079204,0.88356979,1923.8,1923.7,17.6001]
[1688247085108,0.92532685,1923.8,1923.7,17.6001]
[1688247088908,0.88356979,1923.8,1923.7,17.6001]
[1688247092121,0.88356979,1923.8,1923.7,12.9181]
[1688247092627,0.92532685,1923.8,1923.7,12.9181]
[1688247095314,0.88356979,1923.8,1923.7,12.9181]
[1688247095818,0.88356979,1923.8,1923.7,13.23]
[1688247098428,0.10382979,1923.8,1923.7,13.23]
[1688247098627,0.41570979,1923.8,1923.7,13.23]
[1688247098821,0.31188,1923.8,1923.7,13.23]
[1688247099023,0.41581764,1923.8,1923.7,13.23]
[1688247100227,0.4575747,1923.8,1923.7,12.9181]
[1688247100821,0.41581764,1923.8,1923.7,13.23]
[1688247102126,0.41581764,1923.8,1923.7,17.912]
[1688247106828,0.4575747,1923.8,1923.7,17.6001]
[1688247107626,0.41581764,1923.8,1923.7,17.6001]
[1688247108133,0.4575747,1923.8,1923.7,17.6001]
[1688247111636,0.41581764,1923.8,1923.7,17.6001]
[1688247111829,0.41581764,1923.8,1923.7,17.912]
[1688247112134,0.4575747,1923.8,1923.7,18.23]
[1688247113936,0.41581764,1923.8,1923.7,18.23]
[1688247114435,0.4575747,1923.8,1923.7,12.8498]
[1688247115034,0.41581764,1923.8,1923.7,13.1617]
[1688247117339,0.41581764,1923.8,1923.7,8.1617]
[1688247118938,0.41581764,1923.8,1923.7,13.1617]
[1688247120337,0.41581764,1923.8,1923.7,8.1617]
[1688247121233,0.41581764,1923.8,1923.7,13.1617]
[1688247121433,0.41581764,1923.8,1923.7,8.1617]
[1688247121733,0.41581764,1923.8,1923.7,13.1617]
[1688247126643,0.41581764,1923.8,1923.7,8.1617]
[1688247128150,0.41581764,1923.8,1923.7,13.1617]
[1688247136554,0.41581764,1923.8,1923.7,8.1617]
[1688247136757,0.41581764,1923.8,1923.7,13.1617]
[1688247137963,0.41581764,1923.8,1923.7,8.1617]
[1688247138552,0.4575747,1923.8,1923.7,7.8498]
[1688247138753,0.4575747,1923.8,1923.7,12.8498]
[1688247138942,0.4575747,1923.8,1923.7,13.1617]
[1688247139657,0.41581764,1923.8,1923.7,13.1617]
[1688247145958,0.41581764,1923.8,1923.7,8.1617]
[1688247146257,0.41581764,1923.8,1923.7,13.1617]
[1688247158272,0.41581764,1923.8,1923.7,8.1617]
[1688247158766,0.41581764,1923.8,1923.7,13.1617]
[1688247159669,0.41581764,1923.8,1923.7,8.1617]
[1688247159868,0.41581764,1923.8,1923.7,13.1617]
[1688247160874,0.41581764,1923.8,1923.7,8.1617]
[1688247162074,0.41581764,1923.8,1923.7,17.8437]
[1688247162267,0.41581764,1923.8,1923.7,12.8437]
[1688247163274,0.41581764,1923.8,1923.7,17.8437]
[1688247165177,0.41581764,1923.8,1923.7,12.8437]
[1688247165579,0.41581764,1923.8,1923.7,17.8437]
[1688247166478,0.41581764,1923.8,1923.7,12.8437]
[1688247169878,0.41581764,1923.8,1923.7,17.8437]
[1688247172779,0.41581764,1923.8,1923.7,12.8437]
[1688247172977,0.41581764,1923.8,1923.7,17.8437]
[1688247175385,0.41581764,1923.8,1923.7,12.8437]
[1688247175583,0.41581764,1923.8,1923.7,17.8437]
[1688247176183,0.4575747,1923.8,1923.7,7.8498]
[1688247176582,0.4575747,1923.8,1923.7,12.8498]
[1688247176984,0.41581764,1923.8,1923.7,12.8498]
[1688247178988,0.41581764,1923.8,1923.7,13.1617]
[1688247180088,0.41581764,1923.8,1923.7,8.1617]
[1688247180486,0.4575747,1923.8,1923.7,8.1617]
[1688247180989,0.4575747,1923.8,1923.7,13.1617]
[1688247183386,0.41581764,1923.8,1923.7,13.1617]
[1688247187099,0.41581764,1923.8,1923.7,8.1617]
[1688247187295,0.41581764,1923.8,1923.7,13.1617]
[1688247187696,0.41581764,1923.8,1923.7,8.1617]
[1688247189791,0.41581764,1923.8,1923.7,13.1617]
[1688247190590,0.41581764,1923.8,1923.7,8.1617]
[1688247191498,0.41581764,1923.8,1923.7,13.1617]
[1688247195398,0.41581764,1923.8,1923.7,8.1617]
[1688247195996,0.41581764,1923.8,1923.7,13.1617]
[1688247197103,0.4575747,1923.8,1923.7,13.1617]
[1688247197502,0.4575747,1923.8,1923.7,8.1617]
[1688247199104,0.4575747,1923.8,1923.7,13.1617]
[1688247200804,0.41581764,1923.8,1923.7,13.1617]
[1688247202307,0.4575747,1923.8,1923.7,13.1617]
[1688247208820,0.4575747,1923.8,1923.7,9.9539]
[1688247209608,0.4575747,1923.8,1923.7,13.1617]
[1688247212018,0.4575747,1923.8,1923.7,8.1617]
[1688247212411,0.4575747,1923.8,1923.7,13.1617]
[1688247214524,0.4575747,1923.8,1923.7,8.1617]
[1688247215226,0.4575747,1923.8,1923.7,13.1617]
[1688247216016,0.4575747,1923.8,1923.7,8.1617]
[1688247216738,0.4575747,1923.8,1923.7,13.1617]
[1688247216919,0.4575747,1923.8,1923.7,9.9539]
[1688247217427,0.4575747,1923.8,1923.7,13.1617]
[1688247219531,0.4575747,1923.8,1923.7,9.9539]
[1688247219723,0.4575747,1923.8,1923.7,13.1617]
[1688247222432,0.4575747,1923.8,1923.7,8.1617]
[1688247223124,0.4575747,1923.8,1923.7,13.1617]
[1688247236843,0.4575747,1923.8,1923.7,8.1617]
[1688247239044,0.4575747,1923.8,1923.7,13.1617]
[1688247239442,0.41581764,1923.8,1923.7,13.1617]
[1688247239843,0.4575747,1923.8,1923.7,13.1617]
[1688247240249,0.4575747,1923.8,1923.7,8.1617]
[1688247240444,0.4575747,1923.8,1923.7,13.1617]
[1688247243148,0.4575747,1923.8,1923.7,9.9539]
[1688247243445,0.4575747,1923.8,1923.7,13.1617]
[1688247246949,0.4575747,1923.8,1923.7,12.8498]
[1688247252148,0.4575747,1923.8,1923.7,9.642]
[1688247252349,0.4575747,1923.8,1923.7,12.8498]
[1688247256052,0.4575747,1923.8,1923.7,9.642]
[1688247256251,0.4575747,1923.8,1923.7,12.8498]
[1688247256958,0.4575747,1923.8,1923.7,7.8498]
[1688247257153,0.4575747,1923.8,1923.7,12.8498]
[1688247258849,0.5615747,1923.8,1923.7,4.642]
[1688247259155,0.5615747,1923.8,1923.6,4.68979727]
[1688247259156,0.104,1923.7,1923.6,4.68979727]
[1688247259353,0.98338412,1923.7,1923.6,4.68979727]
[1688247259558,2.02156863,1923.7,1923.6,4.68979727]
[1688247261559,1.08594549,1923.7,1923.6,4.68979727]
[1688247262048,2.02156863,1923.7,1923.6,0.00779727]
[1688247262447,7.23166863,1923.7,1923.6,0.00779727]
[1688247267074,7.12766863,1923.7,1923.6,0.00779727]
[1688247269569,7.53504371,1923.7,1923.6,0.00779727]
[1688247271366,9.80722057,1923.7,1923.6,0.00779727]
[1688247271562,10.74284371,1923.7,1923.6,0.00779727]
[1688247287184,7.53504371,1923.7,1923.6,0.00779727]
[1688247289984,6.96494371,1923.7,1923.6,0.00779727]
[1688247290480,11.91064371,1923.7,1923.6,0.00779727]
[1688247301490,18.72932525,1923.7,1923.6,0.00779727]
[1688247314412,18.72932525,1923.7,1923.5,5.12]
[1688247314709,0.104,1923.5,1923.4,4.682]
[1688247314917,0.104,1923.5,1923.1,4.645]
[1688247314918,0.31195,1923.4,1923.1,5.1574]
[1688247315211,0.31198,1923.2,1923.1,5.1574]
[1688247315506,0.87946412,1923.2,1923.1,5.1574]
[1688247315710,4.08726412,1923.2,1923.1,5.1574]
[1688247316798,4.08726412,1923.2,1923.1,5.3878174]
[1688247325617,5.02288726,1923.2,1923.1,5.3878174]
[1688247326521,4.08726412,1923.2,1923.1,5.3878174]
[1688247327121,0.87946412,1923.2,1923.1,5.3878174]
[1688247327315,4.08726412,1923.2,1923.1,5.3878174]
[1688247328522,0.87946412,1923.2,1923.1,5.3878174]
[1688247328720,4.08726412,1923.2,1923.1,5.3878174]
[1688247329521,5.02279102,1923.2,1923.1,5.3878174]
[1688247330424,4.08726412,1923.2,1923.1,5.3878174]
[1688247334729,5.02280325,1923.2,1923.1,5.3878174]
[1688247337930,4.08726412,1923.2,1923.1,5.3878174]
[1688247341032,5.02280806,1923.2,1923.1,5.3878174]
[1688247358947,5.02280806,1923.2,1923.1,5.67453375]
[1688247359343,4.45532394,1923.2,1923.1,5.67453375]
[1688247359550,3.51978,1923.2,1923.1,5.67453375]
[1688247360152,3.51978,1923.2,1923.1,5.98653375]
[1688247360544,3.51978,1923.2,1923.1,18.46947925]
[1688247361056,4.45532394,1923.2,1923.1,18.46947925]
[1688247361756,4.45532394,1923.2,1923.1,5.98653375]
[1688247362549,4.45532394,1923.2,1923.1,18.46950733]
[1688247371861,4.45532394,1923.2,1923.1,5.98653375]
[1688247375370,4.45532394,1923.2,1923.1,5.6998174]
[1688247375668,4.45532394,1923.2,1923.1,5.98653375]
[1688247378575,1.24752394,1923.2,1923.1,5.98653375]
[1688247384371,1.24752394,1923.2,1923.1,23.22912142]
[1688247384568,0.31198,1923.2,1923.1,23.22912142]
[1688247387983,0.31198,1923.2,1923.1,23.65122771]
[1688247389179,0.31198,1923.2,1923.1,23.54722771]
[1688247397692,0.31198,1923.2,1923.1,11.06464004]
[1688247401391,0.31198,1923.2,1923.1,23.54720854]
[1688247402493,0.31198,1923.2,1923.1,11.06464004]
[1688247411609,0.2262336,1923.2,1923.1,11.06464004]
[1688247412199,0.2262336,1923.2,1923.1,11.09064004]
[1688247415511,0.2262336,1923.2,1923.1,23.5732456]
[1688247415714,0.2262336,1923.2,1923.1,11.09064004]
[1688247417909,0.2262336,1923.2,1923.1,23.57322925]
[1688247418214,0.2262336,1923.2,1923.1,11.09064004]
[1688247419217,0.2262336,1923.2,1923.1,23.57326966]
[1688247433928,0.26799066,1923.2,1923.1,17.81715331]
[1688247434217,0.26799066,1923.2,1923.1,17.39504702]
[1688247434725,4.90799066,1923.2,1923.1,12.71304702]
[1688247438923,5.8435346,1923.2,1923.1,12.71304702]
[1688247441331,5.8435346,1923.2,1923.1,0.2304174]
[1688247445634,5.9475346,1923.2,1923.1,0.2304174]
[1688247448529,5.9475346,1923.2,1923.1,0.5424174]
[1688247451838,5.8435346,1923.2,1923.1,0.5424174]
[1688247466050,5.8435346,1923.2,1923.1,0.2304174]
[1688247481670,12.66221614,1923.2,1923.1,0.2304174]
[1688247483182,17.34421614,1923.2,1923.1,0.2304174]
[1688247492882,17.34421614,1923.2,1923.0,4.9862997]
[1688247493090,9.35082806,1923.1,1922.9,4.8077]
[1688247493289,5.02176706,1923.0,1922.9,4.8077]
[1688247494486,5.02176706,1923.0,1922.9,4.98540229]
[1688247494887,5.02176706,1923.0,1922.9,0.17770229]
[1688247495295,5.02176706,1923.0,1922.8,0.4268337]
[1688247495489,4.682,1922.9,1922.8,0.4268337]
[1688247495798,5.56151412,1922.9,1922.8,0.4268337]
[1688247495990,6.49705806,1922.9,1922.8,0.4268337]
[1688247502093,6.49705806,1922.9,1922.8,0.00780051]
[1688247507803,9.70485806,1922.9,1922.8,0.00780051]
[1688247509395,9.70485806,1922.9,1922.8,0.27511306]
[1688247513709,6.49705806,1922.9,1922.8,0.27511306]
[1688247513912,9.70485806,1922.9,1922.8,0.27511306]
[1688247522016,9.70485806,1922.9,1922.8,0.56182941]
[1688247524618,9.70485806,1922.9,1922.8,0.27511306]
[1688247531721,9.70485806,1922.9,1922.8,0.58716306]
[1688247532124,9.70485806,1922.9,1922.8,0.87387941]
[1688247541217,9.70485806,1922.9,1922.8,0.58716306]
[1688247542726,9.70485806,1922.9,1922.8,0.27511306]
[1688247547927,16.5235396,1922.9,1922.8,0.27511306]
[1688247548331,9.70485806,1922.9,1922.8,0.27511306]
[1688247548827,16.5235396,1922.9,1922.8,0.27511306]
[1688247557536,16.5235396,1922.9,1922.8,0.87387941]
[1688247557537,15.95605548,1922.9,1922.8,0.87387941]
[1688247562935,12.74825548,1922.9,1922.8,0.87387941]
[1688247563140,5.92957394,1922.9,1922.8,0.87387941]
[1688247564230,9.13737394,1922.9,1922.8,0.87387941]
[1688247565334,15.95605548,1922.9,1922.8,0.87387941]
[1688247569137,15.99781254,1922.9,1922.8,0.87387941]
[1688247570042,12.79001254,1922.9,1922.8,0.87387941]
[1688247571445,15.99781254,1922.9,1922.8,0.87387941]
[1688247571845,12.79001254,1922.9,1922.8,0.87387941]
[1688247572045,5.971331,1922.9,1922.8,0.87387941]
[1688247572745,9.179131,1922.9,1922.8,0.87387941]
[1688247577945,5.971331,1922.9,1922.8,0.87387941]
[1688247578142,5.92957394,1922.9,1922.8,0.87387941]
[1688247584259,5.92957394,1922.9,1922.8,1.29793902]
[1688247586659,4.99403,1922.9,1922.8,1.29793902]
[1688247589968,5.92957394,1922.9,1922.8,1.29793902]
[1688247598667,4.99403,1922.9,1922.8,1.29793902]
[1688247601064,4.99403,1922.9,1922.8,0.69917267]
[1688247601065,5.03578706,1922.9,1922.8,0.69917267]
[1688247601566,5.03578706,1922.9,1922.8,1.01122267]
[1688247602167,5.03578706,1922.9,1922.8,1.29793902]
[1688247604071,5.03578706,1922.9,1922.8,1.01122267]
[1688247604771,5.03578706,1922.9,1922.8,1.29793902]
[1688247605168,4.99403,1922.9,1922.8,1.29793902]
[1688247606069,4.99403,1922.9,1922.8,1.70468035]
[1688247606969,5.03578706,1922.9,1922.8,1.70468035]
[1688247610271,5.03578706,1922.9,1922.8,1.417964]
[1688247611074,5.03578706,1922.9,1922.8,1.70468035]
[1688247611875,4.99403,1922.9,1922.8,1.70468035]
[1688247619880,5.03578706,1922.9,1922.8,1.70468035]
[1688247620583,5.971331,1922.9,1922.8,1.70468035]
[1688247621480,9.179131,1922.9,1922.8,1.70468035]
[1688247622078,4.497131,1922.9,1922.8,1.70468035]
[1688247623985,4.45537394,1922.9,1922.8,1.70468035]
[1688247624582,4.497131,1922.9,1922.8,1.417964]
[1688247626082,4.497131,1922.9,1922.8,1.70468035]
[1688247633390,4.45537394,1922.9,1922.8,1.70468035]
[1688247635188,4.497131,1922.9,1922.8,1.70468035]
[1688247639988,4.497131,1922.9,1922.8,1.417964]
[1688247640191,4.497131,1922.9,1922.8,1.105914]
[1688247640898,4.497131,1922.9,1922.8,0.70183361]
[1688247642900,4.497131,1922.9,1922.8,0.98854996]
[1688247643292,4.497131,1922.9,1922.8,1.30059996]
[1688247646207,4.497131,1922.9,1922.8,1.01388361]
[1688247646606,4.497131,1922.9,1922.8,0.70183361]
[1688247648099,4.601131,1922.9,1922.8,0.70183361]
[1688247648304,9.241131,1922.9,1922.8,0.277774]
[1688247648501,16.05981254,1922.9,1922.8,0.277774]
[1688247648807,16.05633795,1922.9,1922.8,0.277774]
[1688247649301,9.241131,1922.9,1922.8,0.277774]
[1688247649604,8.30558706,1922.9,1922.8,0.277774]
[1688247650209,15.12077238,1922.9,1922.8,0.277774]
[1688247650505,16.05631632,1922.9,1922.8,0.277774]
[1688247651997,9.241131,1922.9,1922.8,0.277774]
[1688247652294,8.30558706,1922.9,1922.8,0.277774]
[1688247652706,15.11789316,1922.9,1922.8,0.277774]
[1688247652906,16.0534371,1922.9,1922.8,0.277774]
[1688247653705,9.241131,1922.9,1922.8,0.277774]
[1688247656205,16.05188617,1922.9,1922.8,0.277774]
[1688247659005,15.94788617,1922.9,1922.8,0.277774]
[1688247668316,9.137131,1922.9,1922.8,0.277774]
[1688247670910,9.241131,1922.9,1922.8,0.00780051]
[1688247671711,19.409831,1922.9,1922.8,0.00780051]
[1688247672518,19.409831,1922.9,1922.8,0.48681901]
[1688247674616,19.305831,1922.9,1922.8,0.48681901]
[1688247685522,9.137131,1922.9,1922.8,0.77353536]
[1688247686131,15.94294768,1922.9,1922.8,0.48681901]
[1688247686936,9.137131,1922.9,1922.8,0.48681901]
[1688247687228,15.94412258,1922.9,1922.8,0.48681901]
[1688247688032,15.94411499,1922.9,1922.8,0.48681901]
[1688247688831,9.137131,1922.9,1922.8,0.48681901]
[1688247697934,9.137131,1922.9,1922.3,0.72777169]
[1688247698135,3.2078,1922.6,1922.4,10.337]
[1688247698330,4.9801,1922.5,1922.4,10.70128081]
[1688247699334,5.91564394,1922.5,1922.4,10.70128081]
[1688247705935,5.91564394,1922.5,1922.4,0.36428081]
[1688247710540,5.91564394,1922.5,1922.4,0.67639081]
[1688247710741,5.91564394,1922.5,1922.4,0.96310716]
[1688247712447,5.91564394,1922.5,1922.4,0.67639081]
[1688247713851,5.91564394,1922.5,1922.4,0.76982893]
[1688247714949,5.91564394,1922.5,1922.4,0.45771893]
[1688247722662,5.91564394,1922.5,1922.4,0.76982893]
[1688247723067,5.91564394,1922.5,1922.4,1.05654528]
[1688247724261,5.91564394,1922.5,1922.4,0.76982893]
[1688247730870,5.91564394,1922.5,1922.4,1.05654528]
[1688247736372,5.91564394,1922.5,1922.4,0.76982893]
[1688247736774,5.91564394,1922.5,1922.4,0.45771893]
[1688247745280,5.91564394,1922.5,1922.4,0.76982893]
[1688247745596,5.91564394,1922.5,1922.4,1.05654528]
[1688247746581,5.91564394,1922.5,1922.4,0.76982893]
[1688247747787,5.91564394,1922.5,1922.4,0.45771893]
[1688247748878,5.91564394,1922.5,1922.4,0.76982893]
[1688247749183,5.91564394,1922.5,1922.4,1.05654528]
[1688247749582,1.24764394,1922.5,1922.4,13.54424295]
[1688247750779,0.3121,1922.5,1922.4,13.54424295]
[1688247760086,0.3121,1922.5,1922.4,1.05654528]